Cogmind - Beta 17.1 @@@ ROGUE MODE // 2026.09.13 @ 18:33:56 Player: Ethranok Result: Destroyed by G-47 Trooper with Particle Gun Performance ------------- Evolutions (0) 0 Regions Visited (1) 200 Robots Destroyed (24) 120 Value Destroyed (554) 554 Prototype IDs (0) 0 Alien Tech Used (0) 0 Bonus (0) 0 TOTAL SCORE: 874 Bonus ------- None Cogmind --------- Core Integrity 0/250 Matter 247/300 Energy 160/160 System Corruption 1% Temperature Cool (26) Movement Treading (160) Location -10/Materials Parts ------- > --- POWER (1) -------- Light Nuclear Core > --- PROPULSION (2) --- Light Treads > --- UTILITY (2) ------ Small Storage Unit Hacking Suite > --- WEAPON (2) ------- Light Cannon Light Cannon > --- INVENTORY (8) ---- Light Treads Medium Matter Pod (100) Large Matter Pod (95) Utility Shielding Light Armor Plating Light Armor Plating Light Assault Rifle Light Cannon Peak State ------------ > --- POWER ------------ Light Nuclear Core > --- PROPULSION ------- Light Treads Light Treads > --- UTILITY ---------- Small Storage Unit Hacking Suite > --- WEAPON ----------- Light Cannon Light Cannon > --- INVENTORY -------- Ion Engine Medium Matter Pod Large Matter Pod Light Armor Plating Light Armor Plating EM Pulse Gun Light Assault Rifle Light Cannon [Rating: 11] Favorites ----------- Power Ion Engine Engine Ion Engine Power Core Light Nuclear Core Propulsion Light Treads Treads Light Treads Utility Small Storage Unit Storage Small Storage Unit Hackware Hacking Suite Weapon Light Cannon Energy Gun Medium Laser Ballistic Gun Light Assault Rifle Ballistic Cannon Light Cannon Build | -11 -10 ------- Run | Yrd Mat Slots Evolved . | . . Power . | . . Propulsion . | . . Utility . | . . Weapon . | . . Parts Attached 13 | 6 7 Power 4 | 1 3 Engine 3 | 1 2 Core 1 | . 1 Reactor . | . . Propulsion 2 | 2 . Treads 2 | 2 . Leg . | . . Wheel . | . . Hover . | . . Flight . | . . Utility 2 | 1 1 Device . | . . Storage 1 | 1 . Processor . | . . Hackware 1 | . 1 Protection . | . . Artifact . | . . Weapon 5 | 2 3 Energy Gun 2 | 2 . Energy Cannon . | . . Ballistic Gun 1 | . 1 Ballistic Cannon 2 | . 2 Launcher . | . . Special Weapon . | . . Impact Weapon . | . . Slashing Weapon . | . . Piercing Weapon . | . . Special Melee Weapon . | . . Unidentified Prototypes . | . . Parts Lost 3 | . 3 Power 2 | . 2 Propulsion 1 | . 1 Utility . | . . Weapon . | . . Highest Loss Streak 1 | . 1 To Critical Strikes . | . . Average Backups 5 | 1 5 Power 1 | 1 1 Propulsion . | . . Utility 2 | . 2 Weapon 1 | . 1 Tool/Special . | . . Unused Backups 9 | 1 8 Power 1 | . 1 Propulsion . | . . Utility 6 | . 6 Weapon 2 | 1 1 Tool/Special . | . . Average Slot Usage (%) 97 | . 97 Engine 12 | . 12 Treads 27 | . 27 Storage 14 | . 14 Hackware 12 | . 12 Energy Gun 11 | . 11 Ballistic Gun 2 | . 2 Ballistic Cannon 13 | . 13 Peak Build Rating 11 | 6 11 Average Rating 8 | 4 8 On Entrance 3 | . 6 Avg Prop Armor Cover (%) . | . . Naked Turns . | . . Heaviest Build 16 | 12 16 Greatest Support 40 | 40 40 Greatest Overweight (x) 1 | 1 . Average Overweight (x) . | . . Largest Inventory Capacity 8 | 8 8 Average Capacity 7 | 7 8 Most Carried 8 | 6 8 Average Carried 5 | 2 5 Final Capacity 8 | 8 8 Final Carried 8 | 1 8 Class Distribution -------------------- 100% | Mutant Dominant Class ---------------- Mutant | -10/Materials Resources | -11 -10 ----------- Run | Yrd Mat Matter Collected 700 | 209 491 Remotely . | . . Salvage Created 748 | . 748 Parts 51 | . 51 Haulers Intercepted 1 | . 1 Recyclers Shooed . | . . Parts Field Recycled . | . . Retrieved Matter . | . . Parts Self-Destructed . | . . Prevented . | . . Parts Restored . | . . Kills | -11 -10 ------- Run | Yrd Mat Combat Hostiles Destroyed 17 | . 17 Guns 10 | . 10 Cannons 5 | . 5 AOE 2 | . 2 Classes Destroyed 7 | . 7 Worker 1 | . 1 Hauler 1 | . 1 Recycler 1 | . 1 Operator 1 | . 1 Watcher 3 | . 3 Swarmer 5 | . 5 Grunt 12 | . 12 Best Kill Streak 6 | . 6 Combat Bots Only 5 | . 5 Max Kills in Single Turn 3 | . 3 Gunslinging . | . . Exploded 2 | . 2 Melee . | . . Uniques/NPCs Destroyed . | . . Combat | -11 -10 -------- Run | Yrd Mat Hostile Shots Fired 108 | . 108 Missed 32 | . 32 Hits 76 | . 76 Projectile 76 | . 76 Critical Strikes 2 | . 2 Damage Taken 865 | . 865 Core 250 | . 250 Absorbed by Shields . | . . Core Remaining (%) 100 | 100 . Volleys Fired 58 | . 58 Largest 2 | . 2 Hottest 90 | . 90 Shots Fired 111 | . 111 Gun 75 | . 75 Cannon 36 | . 36 Launcher . | . . Special . | . . Kinetic 46 | . 46 Thermal 35 | . 35 Explosive . | . . Electromagnetic 30 | . 30 Robot Hit Streak 13 | . 13 Robot Miss Streak 2 | . 2 Penetration Max . | . . Secondary Targets 2 | . 2 Max Gunslinging Chain 1 | . 1 Shots Hit Robots 74 | . 74 Core Hits 34 | . 34 Critical Kills . | . . Critical Parts Destroyed . | . . Critical Strikes 2 | . 2 Burn 2 | . 2 Melee Attacks . | . . Impact . | . . Slashing . | . . Piercing . | . . Sneak Attacks . | . . Combat Hostiles . | . . Follow-up Attacks . | . . Damage Inflicted 1193 | . 1193 Guns 661 | . 661 Cannons 428 | . 428 Explosions 90 | . 90 Melee . | . . Ramming 14 | . 14 Kinetic 495 | . 495 Thermal 361 | . 361 Explosive . | . . Electromagnetic 323 | . 323 Impact . | . . Slashing . | . . Piercing . | . . Highest Corruption 1 | . 1 Average Corruption 1 | . 1 Corruption Purged . | . . Corruption Blocked . | . . Effects 9 | . 9 Message Errors 4 | . 4 Matter Fused 1 | . 1 Heat Flow Errors 1 | . 1 Energy Discharges 3 | . 3 Overload Shots . | . . Overflow Damage 12 | . 12 Projectiles . | . . Explosions 12 | . 12 Melee . | . . Knockbacks 13 | . 13 Impact . | . . Kinetic 12 | . 12 Secondary 1 | . 1 Self-Inflicted Damage . | . . Shots . | . . Rammed 6 | . 6 Targets Rammed 6 | . 6 Kicked . | . . Crushed . | . . Highest Temperature 273 | . 273 Average Temperature 86 | . 86 Received Heat Transfer 444 | . 444 Effects 2 | . 2 Interference 2 | . 2 Siege Activations . | . . Martial Activations . | . . Shielding Activations . | . . Robots Disrupted . | . . Combat Hostiles . | . . Robots Corrupted . | . . Combat Hostiles . | . . Parts Fried . | . . Impact Corruptions . | . . Robots Melted . | . . Combat Hostiles . | . . Parts Melted 1 | . 1 Heat Transferred 1025 | . 1025 Parts Sabotaged . | . . Parts Stolen . | . . Parts Stripped . | . . Power Chain Reactions 1 | . 1 Alert | -11 -10 ------- Run | Yrd Mat Maximum Alert Level . | . . Low Security (%) 100 | 100 100 Level 1 . | . . Level 2 . | . . Level 3 . | . . Level 4 . | . . Level 5 . | . . High Security . | . . Max Security . | . . Peak Influence 155 | . 155 Initial . | . . Average 49 | . 52 Influence Increases 486 | . 486 Destroy 0b10 Robot/C 340 | . 340 Destroy 0b10 Robot/NC 35 | . 35 Destroy Leader 78 | . 78 Disable Machine 15 | . 15 Destroy Structure 3 | . 3 Lose Combat Pursuer 15 | . 15 Influence Decreases 485 | . 485 Time Decay 345 | . 345 Lost Part 11 | . 11 Purge Threat 129 | . 129 Squads Dispatched 5 | . 5 Investigation 3 | . 3 Extermination . | . . Reinforcement 2 | . 2 Assault . | . . Garrison . | . . Intercept . | . . Searches Triggered . | . . Construction Impeded . | . . Haulers Reinforced . | . . Active Scanning Responses . | . . Cargo Convoy Interrupts . | . . Stealth | -11 -10 --------- Run | Yrd Mat Distress Signals 1 | . 1 Communications Jammed . | . . Distress Signals . | . . Times Spotted 27 | . 27 Peak Tracking Total 7 | . 7 Tactical Retreats 1 | . 1 Traps | -11 -10 ------- Run | Yrd Mat Traps Triggered 2 | . 2 Indirectly . | . . Trap Hack Attempts . | . . Triggered . | . . Disarmed . | . . Reprogrammed . | . . Reused . | . . Traps Extracted . | . . Installed . | . . Triggered . | . . Machines | -11 -10 ---------- Run | Yrd Mat Machines Disabled 1 | . 1 Max in Single Turn 1 | . 1 Machines Repaired . | . . Machines Dismantled . | . . Machines Sabotaged . | . . Overloaded Fab Kills . | . . Hacking | -11 -10 --------- Run | Yrd Mat Machines Accessed 6 | . 6 Terminals 4 | . 4 Fabricators . | . . Repair Stations . | . . Recycling Units 2 | . 2 Scanalyzers . | . . Garrison Access . | . . Total Hacks 18 | . 18 Successful 11 | . 11 Failed 7 | . 7 Catastrophic 2 | . 2 Database Lockouts . | . . Manual 17 | . 17 Terminals 16 | . 16 Fabricators . | . . Repair Stations . | . . Recycling Units 2 | . 2 Scanalyzers . | . . Garrison Access . | . . Terminal Hacks 9 | . 9 Record 1 | . 1 Robot Analysis 2 | . 2 Branch Access Points 1 | . 1 Terminal Index 1 | . 1 Recycling Unit Index 1 | . 1 Alert Level 2 | . 2 Unreport Threat 1 | . 1 Fabricator Hacks . | . . Repair Station Hacks . | . . Recycling Unit Hacks 2 | . 2 Report Inventory 2 | . 2 Scanalyzer . | . . Garrison Access Hacks . | . . Unauthorized Hacks . | . . Terminals . | . . Fabricators . | . . Repair Stations . | . . Recycling Units . | . . Scanalyzers . | . . Garrison Access . | . . Data Cores Recovered 1 | . 1 Used . | . . Hacking Detections 4 | . 4 Full Trace Events 1 | . 1 Feedback Events 1 | . 1 Corruption 1 | . 1 Feedback Blocked . | . . Robot Schematics Acquired . | . . Robots Built . | . . Authchips . | . . Time . | . . Total Robot Build Rating . | . . Part Schematics Acquired . | . . Parts Built . | . . Authchips . | . . Time . | . . Total Part Build Rating . | . . Part Studies Acquired . | . . Parts Repaired . | . . Time . | . . Parts Recycled . | . . Recycled Matter . | . . Retrieved Matter . | . . Retrieved Components . | . . Parts Scanalyzed . | . . Part Schematics Acquired . | . . Parts Damaged . | . . Bothacking | -11 -10 ------------ Run | Yrd Mat Used RIF Installer . | . . Robots Hacked . | . . Non-combat . | . . Combat . | . . Robot Hacks Applied . | . . Relay Couplers Released . | . . Fabnet Peak Effective % . | . . Robots Rewired . | . . Allies Hacked . | . . Hacks Repelled . | . . Allies | -11 -10 -------- Run | Yrd Mat Total Allies . | . . Largest Group . | . . Highest-Rated Group . | . . Highest-Rated Ally . | . . Total Orders . | . . Ally Attacks . | . . Total Damage . | . . Kills . | . . Allies Corrupted . | . . Allies Melted . | . . Intel | -11 -10 ------- Run | Yrd Mat Active Infowar (turns) . | . . Robot Analysis Total 2 | . 2 Derelict Logs Recovered . | . . Drone Launches . | . . Drone Recoveries . | . . Exploration | -11 -10 ------------- Run | Yrd Mat Turns Passed 1052 | 63 989 Spaces Moved 511 | 43 468 Core 18 | 18 . Treads 493 | 25 468 Legs . | . . Wheels . | . . Hover . | . . Flight . | . . Fastest Speed 50 | 50 160 Average Speed 156 | 115 160 Slowest Speed 160 | 160 160 Overloaded Moves . | . . Propulsion Burnouts . | . . Robots Hopped . | . . Potential Cave-ins . | . . Cave-ins Triggered . | . . Exploration Rate (%) 35 | 3 68 Regions Visited 1 Branch Regions . Pre-discovered Areas . | . . Known Exits Taken . | . . Unknown Exits Taken 1 | 1 . Scrap Searched . | . . Spaces Dug . | . . Terrain Destroyed 2 | . 2 Melee . | . . Projectile . | . . AOE 2 | . 2 Terrain Rammed . | . . Walls Destroyed . | . . Machines Disabled . | . . Actions | -11 -10 --------- Run | Yrd Mat Total 655 | 57 598 Wait 39 | . 39 Move 510 | 42 468 Hop . | . . Pick Up 23 | 8 15 Fast Attach . | . . Attach 9 | 6 3 Detach . | . . Swap 4 | . 4 Drop 6 | 1 5 Fire 58 | . 58 Melee . | . . Ram . | . . Kick . | . . Crush 6 | . 6 Escape Stasis . | . . Rewire . | . . Trap . | . . Miscellaneous . | . . Route ------- -11/Scrapyard -10/Materials (discovered 2 exits: [*Mat] / *Min) History --------- Turn | Location | Event 13 | -11/Scrapyard | Discovered new exit (range 14) 64 | -11/Scrapyard | Entered Materials 262 | -10/Materials | Core integrity fell below 50% 310 | -10/Materials | Build established: Mutant 369 | -10/Materials | Discovered new exit (range 7) 378 | -10/Materials | Identified exit to Mines 754 | -10/Materials | Discovered new exit (range 16) 1044 | -10/Materials | Core integrity fell below 20% 1053 | -10/Materials | Destroyed by G-47 Trooper with Particle Gun Last Messages --------------- 00854_ An alarm sounds. 00854_ ALERT: Alarm triggered, dispatching investigation squad. 00860_ U-05 Engineer lays Concrete. 00883_ System corrupted: Heat flow error (+174). 00901_ System corrupted: Energy discharge (-95). 00946_ E7TZ5A|GED|/&3:FD3JRR08 00951_ Slammed into K-01 Serf. 00967_ QQXJH&OEJOUM,/O8QH%HFDZ,%HF6 00985_ Dropped Ion Engine. 00992_ Acquired Utility Shielding. 01018_ Dropped EM Pulse Gun. 01019_ Acquired Lgt. Treads. 01021_ LVJQC6%=ENGMX WLVAQFELW 01025_ K-01 Serf cleans the Purification Channel. 01037_ G-34 Mercenary knocked back. 01043_ G-47 Trooper knocked back. 01048_ Lgt. Treads destroyed. 01049_ G-47 Trooper knocked back. 01051_ Critical hit (Burn: +37). 01052_ G-47 Trooper knocked back. Map ----- +----------------------------------------------------+ | | | | | | | | | | | | | | | | | | | | | | | | | | | | | ?????????????????????????????????????????????????? | | ?????????????????????????????????????????????????? | | ?????????????????????????????????????????????????? | | ##############################???????????????????? | | # + #???????????????????? | | # ########+#### #???????????????????? | | # #????# * # #???????????????????? | | ######+####### # #???????????????????? | | # ## + #???????????????????? | | # ## ! # #???????????????????? | | # ## !! #[ #???????????????????? | | # ## ! # t @ #???????????????????? | | # ######### #???????????????????? | | # #???????#####;#############??????????? | | # #?????????# #??????????? | | ########+############## g #??????????? | | #??????????? | | ################# #??????????? | | #??????????????# +??????????? | | #??????????????# #??????????? | | #??####????????# """ """ #??????????? | | ### #????????# """"""""" ######?????? | | ## #????????# """"" " ??? | | ## #????????# ??? | | ### #????????# ??? | | ??# #????????# * ???? | | ??# #????????# /// ???? | | ### #????????# %##################????? | | + #????????# * =%=/#?????????????????????? | | # #????????# * ! #?????????????????????? | | ######????????# ** % #?????????????????????? | | ######+#### % #?????????????????????? | | % * #?????????????????????? | | ######### #?????????????????????? | | #""|"|""# ##????????????????????? | | # "|"|" # %#############?????????? | +----------------------------------------------------+ Best States ------------- Heat Dissipation 25 Energy Generation 10 Energy Capacity 250 Matter Stores 300 Matter Capacity 300 Sight Range 16 Terrain Scan Density 10 Evasion (%) 40 Recoil Reduction 2 Offensive Hacking 10 Item Schematics ----------------- None Robot Schematics ------------------ None Fabricated ------------ Nothing Repaired ---------- Nothing Studied --------- None Alien Tech Used ----------------- None Achievements -------------- None Challenges ------------ None Game ------ Seed PrecisionChipRouter Manual? 0 Play Time 00:12:11 Cumulative 18.8 hours Start 2026.09.13 @ 18:22:26 End 2026.09.13 @ 18:33:56 Sessions 1 Manual Loads 0 Difficulty Rogue Special Mode None Game No. 28 Rogue 28 Adventurer 0 Explorer 0 Win Type - Total 0 Types 0/0/0/0/0/0/0/0/0/0 Lore% 9 Gallery% 13 Achievement% 13 Wizard Run 0 Options --------- Layout 0 ASCII 0 Keyboard 0 Movement Arrows Keybinds 0 Fullscreen 1 Font 24/Smallcaps Map View 56x25 Zoom Use 79% Tactical HUD 1 Map Filters NONE Filters NONE Steam 1 RUN: d44c9d56-7261-4f9e-959c-c7177c7da7d8